{"text_format":"1","workbook":"xlsx","n_sheets":4,"sheets":["Instructions","Performance_Actuelle","Base_de_données","Liste_Résultat"],"not_rendered":{"charts":0,"images":1,"macros":1,"external_links":0,"defined_names":0,"comments":1,"pivot_tables":0},"unopened":[],"bounds":{"document_bytes":16777216,"sheet_cells":100000,"rows_first":2000,"rows_last":500,"rows_between":2000,"halvings":0,"cell_chars":16384,"cell_head_chars":4096},"cells_cut":0,"cells_raw":0,"read":"whole","date_system":"1900"}

{"sheet":"Instructions","index":0,"n_rows":27,"n_cols":4,"rows_kept":27,"cut":false,"hidden":false,"merged":[[9,1,9,18],[33,1,33,18]]}
[]
[null,"Tool \" Performance actuelle\" - Instructions"]
[null,"Toutes les informations suivantes sont à effectuer sur l'onglet \"Performance_Actuelle\""]
[null,"!","Seules les cellules grises claires doivent être complétées"]
[null,"! ","Le tableau de droite est un exemple! Seul le tableau de gauche est à remplir "]
[]
[null,"1.","Cliquer sur le bouton \"nouvelle entrée\" afin d'effacer les anciennes entrées"]
[null,"2.","Remplir les données personnelles de l'athlètes (nom, prénom, date de naissance et date de l'évaluation)"]
[]
[null,"Définir les indicateurs de performance"]
[null,"3.","définir les indicateurs qui serviront à évaluer la performance actuelle (une définition par indicateur peut être apportée)"]
[null,"4.","sélectionner le nombre de paramètres par indicateurs (liste déroulante) (max 4)"]
[null,"5.","décrire les paramètres (quoi, comment, pts max, pondération) - voir exemple sur la droite"]
[null,null,"5.1.","Pondération: chaque paramètre peut être pondéré par rapport aux autres paramètres qui composent le même indicateur."]
[null,"6.","Un indicateur peut être composé de 1 à 4 paramètre(s)."]
[]
[null,"7.","Remplir \"Pondération par indicateur pour calculer le total des points pour \"performance actuelle\" (%)\": Cette fois-ci, la pondération se rapporte à la pondération de l'indicateur et plus des paramètres"]
[null,"8.","Contrôler que les cases préalablement colorées en rouge, soient devenues blanches (La somme des pondérations (entre paramètres et indicateurs) doit être 100%)"]
[]
[null,"9.","Les points obtenus par l'athlète peuvent être introduits."]
[null,"10.","Cliquer sur \"enregistrer\" afin que le résultat s'enregistre automatiquement dans l'onglet \"base de données\" (résultats complets comme introduit dans la grille d'évalutation) et dans l'onglet \"liste de résultat\" (uniquement score final)."]
[]
[null,"11.","cliquer sur \"athlète suivant\": seul les points obtenus par l'athlète et ses données personnelles sont effacés. La grille d'évaluation est prête pour le prochain athlète"]
[]
[]
[null,"Auteurs: Michael Romann & Marie Javet (OFSPO)"]
[null,"Contact: Soutien aux fédérations dans le sport de compétition Swiss Olympic"]

{"sheet":"Performance_Actuelle","index":1,"n_rows":48,"n_cols":28,"rows_kept":48,"cut":false,"hidden":false,"merged":[[46,3,46,9],[47,3,47,9],[47,18,47,24],[9,18,10,18],[9,20,10,20],[9,22,10,22],[9,24,10,24],[46,18,46,24],[9,3,10,3],[9,5,10,5],[9,7,10,7],[9,9,10,9]]}
[]
[null,"Performance actuelle",null,null,null,null,null,null,null,null,null,null,null,null,null,null,"Exemple - Performance actuelle"]
[null,"Grille d'évaluation",null,null,null,null,null,null,null,null,null,null,null,null,null,null,"Grille d'évaluation"]
[null,"Seules les cellules grises claires sont à remplir!",null,null,null,null,null,null,null,null,null,null,null,null,null,null,"Seules les cellules grises claires sont à remplir!"]
[]
[null,"Nom:",null,null,null,"Date de naissance:",null,null,null,null,null,null,null,null,null,null,"Nom:",null,"Smith",null,"Date de naissance:",null,"2000-12-31"]
[null,"Prénom:",null,null,null,"Date de l'évaluation:",null,null,null,null,null,null,null,null,null,null," Prénom:",null,"John",null,"Date de l'évaluation:",null,"2018-06-06"]
[null,null,null,null,null,null,null,null,null,null,null,null,0,null,null,null,null,null,null,null,null,null,null,null,null,null,null,0]
[null,"Indicateurs",null,null,null,null,null,null,null,null,null,null,1,null,null,null,"Indicateurs",null,"indicateurs physiques",null,"Indicateurs techniques-tactiques",null,"Résultats en compétition",null,null,null,null,1]
[null,"définition",null,null,null,null,null,null,null,null,null,null,2,null,null,null,"définition",null,"paramètres évalués pendant des journées de tests organisées par la fédération.\n",null,"évaluation faites lors de match (soit entrainement ou alors compétition).\n",null,"peuvent être observés à l'entrainement, en compétition, lors de tests spécifiques à la discipline sportive",null,"peuvent être observés à l'entrainement, en compétition, lors de tests spécifiques à la discipline sportive\n",null,null,2]
[null,null,null,null,null,null,null,null,null,null,null,null,3,null,null,null,null,null,null,null,null,null,null,null,null,null,null,3]
[null,"nombres de paramètres",null,0,null,0,null,0,null,0,null,null,4,null,null,null,"nombres de paramètres",null,4,null,1,null,0,null,0,null,null,4]
[null,"paramètres",null,null,null,null,null,null,null,null,null,null,null,null,null,null,"paramètres",null,"paramètre 1:",null,"paramètre 1:",null,"paramètre 1:",null,"paramètre 1:"]
[null,"Quoi?",null,null,null,null,null,null,null,null,null,null,null,null,null,null,"Quoi?",null,"sprint test 10m ",null,"TIPS (Technique, intelligence, Personality, Speed)"]
[null,"Comment?",null,null,null,null,null,null,null,null,null,null,null,null,null,null,"Comment?",null,"mesurer avec un système optojump\nBarème en fonction du temps",null,"grille d'évaluation, évalutation par les entraineurs"]
[null,"max de pts possible",null,null,null,null,null,null,null,null,null,null,null,null,null,null,"max de pts possible",null,10,null,10]
[null,"pts obtenus",null,null,null,null,null,null,null,null,null,null,null,null,null,null,"pts obtenus",null,5,null,6]
[null,"pondération (%)",null,null,null,null,null,null,null,null,null,null,null,null,null,null,"pondération (%)",null,25,null,100]
[null,"paramètres",null,null,null,null,null,null,null,null,null,null,null,null,null,null,"paramètres",null,"paramètre 2:",null,"paramètre 2:",null,"paramètre 2:",null,"paramètre 2:"]
[null,"Quoi?",null,null,null,null,null,null,null,null,null,null,null,null,null,null,"Quoi?",null,"Sprint test 30m"]
[null,"Comment?",null,null,null,null,null,null,null,null,null,null,null,null,null,null,"Comment?",null,"mesurer avec un système optojump\nBarème en fonction du temps"]
[null,"max de pts possible",null,null,null,null,null,null,null,null,null,null,null,null,null,null,"max de pts possible",null,10]
[null,"pts obtenus",null,null,null,null,null,null,null,null,null,null,null,null,null,null,"pts obtenus",null,5]
[null,"pondération (%)",null,null,null,null,null,null,null,null,null,null,null,null,null,null,"pondération (%)",null,25]
[null,"paramètres",null,null,null,null,null,null,null,null,null,null,null,null,null,null,"paramètres",null,"paramètre 3:",null,"paramètre 3:",null,"paramètre 3:",null,"paramètre 3:"]
[null,"Quoi?",null,null,null,null,null,null,null,null,null,null,null,null,null,null,"Quoi?",null,"Yo-Yo Test"]
[null,"Comment?",null,null,null,null,null,null,null,null,null,null,null,null,null,null,"Comment?",null,"Barème en fonction du niveau atteint"]
[null,"max de pts possible",null,null,null,null,null,null,null,null,null,null,null,null,null,null,"max de pts possible",null,100]
[null,"pts obtenus",null,null,null,null,null,null,null,null,null,null,null,null,null,null,"pts obtenus",null,50]
[null,"pondération (%)",null,null,null,null,null,null,null,null,null,null,null,null,null,null,"pondération (%)",null,30]
[null,"paramètres",null,null,null,null,null,null,null,null,null,null,null,null,null,null,"paramètres",null,"paramètre 4:",null,"paramètre 4:",null,"paramètre 4:",null,"paramètre 4:"]
[null,"Quoi?",null,null,null,null,null,null,null,null,null,null,null,null,null,null,"Quoi?",null,"Pro Agility Shuttle Test"]
[null,"Comment?",null,null,null,null,null,null,null,null,null,null,null,null,null,null,"Comment?",null,"5 - 10 - 5"]
[null,"max de pts possible",null,null,null,null,null,null,null,null,null,null,null,null,null,null,"max de pts possible",null,10]
[null,"pts obtenus",null,null,null,null,null,null,null,null,null,null,null,null,null,null,"pts obtenus",null,3]
[null,"pondération (%)",null,null,null,null,null,null,null,null,null,null,null,null,null,null,"pondération (%)",null,20]
[]
[null,"Somme total de la pondération par indicateurs",null,{"$f":"SUM(D18,D24,D30,D36,)","v":0},null,{"$f":"SUM(F18,F24,F30,F36,)","v":0},null,{"$f":"SUM(H18,H24,H30,H36,)","v":0},null,{"$f":"SUM(J18,J24,J30,J36,)","v":0},null,null,null,null,null,null,"Somme total de la pondération par indicateurs",null,{"$f":"SUM(S18,S24,S30,S36,)","v":100},null,{"$f":"SUM(U18,U24,U30,U36,)","v":100},null,{"$f":"SUM(W18,W24,W30,W36,)","v":0},null,{"$f":"SUM(Y18,Y24,Y30,Y36,)","v":0}]
[]
[]
[null,"Score par indicatieur",null,null,null,null,null,null,null,null,null,null,null,null,null,null,"Score par indicatieur"]
[null,"max de pts possible (%)",null,{"$f":"SUM(D18,D24,D30,D36)","v":0},{"$f":"SUM(E18,E24,E30,E36)","v":0},0,0,0,0,0,null,null,null,null,null,null,"max de pts possible (%)",null,{"$f":"S18+S24+S30+S36","v":100},null,{"$f":"U18+U24+U30+U36","v":100},null,{"$f":"W18+W24+W30+W36","v":0},null,{"$f":"Y18+Y24+Y30+Y36","v":0},null,{"$f":"COUNTIF(S42:Y42,\">0\")","v":2}]
[null,"pts obtenus (%)",null,{"$f":"IF(D12=0,0,IF(D12=1,(D17/D16)*100,IF(D12=2,((D17/D16)*(D18/100)*100)+((D23/D22)*(D24/100)*100),IF(D12=3,((D17/D16)*(D18/100)*100)+((D23/D22)*(D24/100)*100)+((D29/D28)*(D30/100)*100),IF(D12=4,((D17/D16)*(D18/100)*100)+((D23/D22)*(D24/100)*100)+((D29/D28)*(D30/100)*100)+((D35/D34)*(D36/100)*100))))))","v":0},null,{"$f":"IF(F12=0,0,IF(F12=1,(F17/F16)*100,IF(F12=2,((F17/F16)*(F18/100)*100)+((F23/F22)*(F24/100)*100),IF(F12=3,((F17/F16)*(F18/100)*100)+((F23/F22)*(F24/100)*100)+((F29/F28)*(F30/100)*100),IF(F12=4,((F17/F16)*(F18/100)*100)+((F23/F22)*(F24/100)*100)+((F29/F28)*(F30/100)*100)+((F35/F34)*(F36/100)*100))))))","v":0},null,0,null,0,null,null,null,null,null,null,"pts obtenus (%)",null,{"$f":"IF(S12=0,0,IF(S12=1,(S17/S16)*100,IF(S12=2,((S17/S16)*(S18/100)*100)+((S23/S22)*(S24/100)*100),IF(S12=3,((S17/S16)*(S18/100)*100)+((S23/S22)*(S24/100)*100)+((S29/S28)*(S30/100)*100),IF(S12=4,((S17/S16)*(S18/100)*100)+((S23/S22)*(S24/100)*100)+((S29/S28)*(S30/100)*100)+((S35/S34)*(S36/100)*100))))))","v":46},null,{"$f":"IF(U12=0,0,IF(U12=1,(U17/U16)*100,IF(U12=2,((U17/U16)*(U18/100)*100)+((U23/U22)*(U24/100)*100),IF(U12=3,((U17/U16)*(U18/100)*100)+((U23/U22)*(U24/100)*100)+((U29/U28)*(U30/100)*100),IF(U12=4,((U17/U16)*(U18/100)*100)+((U23/U22)*(U24/100)*100)+((U29/U28)*(U30/100)*100)+((U35/U34)*(U36/100)*100))))))","v":60},null,{"$f":"IF(W12=0,0,IF(W12=1,(W17/W16)*100,IF(W12=2,((W17/W16)*(W18/100)*100)+((W23/W22)*(W24/100)*100),IF(W12=3,((W17/W16)*(W18/100)*100)+((W23/W22)*(W24/100)*100)+((W29/W28)*(W30/100)*100),IF(W12=4,((W17/W16)*(W18/100)*100)+((W23/W22)*(W24/100)*100)+((W29/W28)*(W30/100)*100)+((W35/W34)*(W36/100)*100))))))","v":0},null,0]
[]
[null,"Pondération par indicateur pour calculer le total des points pour \"performance actuelle\" (%)",null,null,null,null,null,null,null,null,null,"-->",1,{"$f":"CONCATENATE(\"Somme des pondérations\",\" = \",SUM(D45,F45,H45,J45))","v":"Somme des pondérations = 0"},{"$f":"COUNTIF(D45:J45,\">0\")","v":0},null,"Pondération par indicateur pour calculer le total des points pour \"performance actuelle\" (%)",null,40,null,60,null,null,null,null,null,{"$f":"CONCATENATE(\"Somme des pondérations\",\" = \",SUM(S45,U45,W45,Y45))","v":"Somme des pondérations = 100"},{"$f":"COUNTIF(S45:Y45,\">0\")","v":2}]
[null,null,null,null,null,null,null,null,null,null,null,null,2,"DOIT ÊTRE = 100",null,null,null,null,null,null,null,null,null,null,null,null,"DOIT ÊTRE = 100"]
[null,"Score final max",null,{"$f":"SUM(D45,F45,H45,J45)","v":0},null,null,null,null,null,null,null,null,null,null,null,null,"Score final max",null,{"$f":"SUM(S45:Y45)","v":100}]
[null,"Score final",null,{"$f":"IF(O45=1,((D43/D42)*(D45/100)*100),IF(O45=2,((D43/D42)*(D45/100)*100)+((F43/F42)*(F45/100)*100),IF(O45=3,((D43/D42)*(D45/100)*100)+((F43/F42)*(F45/100)*100)+((H43/H42)*(H45/100)*100),IF(O45=4,((D43/D42)*(D45/100)*100)+((F43/F42)*(F45/100)*100)+((H43/H42)*(H45/100)*100)+((J43/J42)*(J45/100)*100)))))","v":false},null,null,null,null,null,null,null,null,null,null,null,null,"Score final",null,{"$f":"IF(AB45=1,((S43/S42)*(S45/100)*100),IF(AB45=2,((S43/S42)*(S45/100)*100)+((U43/U42)*(U45/100)*100),IF(AB45=3,((S43/S42)*(S45/100)*100)+((U43/U42)*(U45/100)*100)+((W43/W42)*(W45/100)*100),IF(AB45=4,((S43/S42)*(S45/100)*100)+((U43/U42)*(U45/100)*100)+((W43/W42)*(W45/100)*100)+((Y43/Y42)*(Y45/100)*100)))))","v":54.400000000000006}]

{"sheet":"Base_de_données","index":2,"n_rows":1,"n_cols":66,"rows_kept":1,"cut":false,"hidden":false,"merged":[]}
["Nom","Prénom","Date de naissance","Date de l'évaluation","Score final","Score final max",{"$f":"CONCATENATE(Performance_Actuelle!$D$14,\" - \",\"max de pts\")","v":" - max de pts"},{"$f":"CONCATENATE(Performance_Actuelle!$D$14,\" - \",\"pts obtenus\")","v":" - pts obtenus"},{"$f":"CONCATENATE(Performance_Actuelle!$D$14,\" - \",\"pondération\")","v":" - pondération"},{"$f":"CONCATENATE(Performance_Actuelle!$D$20,\" - \",\"max de pts\")","v":" - max de pts"},{"$f":"CONCATENATE(Performance_Actuelle!$D$20,\" - \",\"pts obtenus\")","v":" - pts obtenus"},{"$f":"CONCATENATE(Performance_Actuelle!$D$20,\" - \",\"pondération\")","v":" - pondération"},{"$f":"CONCATENATE(Performance_Actuelle!$D$26,\" - \",\"max de pts\")","v":" - max de pts"},{"$f":"CONCATENATE(Performance_Actuelle!$D$26,\" - \",\"pts obtenus\")","v":" - pts obtenus"},{"$f":"CONCATENATE(Performance_Actuelle!$D$26,\" - \",\"pondération\")","v":" - pondération"},{"$f":"CONCATENATE(Performance_Actuelle!$D$32,\" - \",\"max de pts\")","v":" - max de pts"},{"$f":"CONCATENATE(Performance_Actuelle!$D$32,\" - \",\"pts obtenus\")","v":" - pts obtenus"},{"$f":"CONCATENATE(Performance_Actuelle!$D$32,\" - \",\"pondération\")","v":" - pondération"},"Score par indicateur ","Score par indicateur - score obtenu","pondération de l'indicateur",{"$f":"CONCATENATE(Performance_Actuelle!$F$14,\" - \",\"max de pts\")","v":" - max de pts"},{"$f":"CONCATENATE(Performance_Actuelle!$F$14,\" - \",\"pts obtenus\")","v":" - pts obtenus"},{"$f":"CONCATENATE(Performance_Actuelle!$F$14,\" - \",\"pondération\")","v":" - pondération"},{"$f":"CONCATENATE(Performance_Actuelle!$F$20,\" - \",\"max de pts\")","v":" - max de pts"},{"$f":"CONCATENATE(Performance_Actuelle!$F$20,\" - \",\"pts obtenus\")","v":" - pts obtenus"},{"$f":"CONCATENATE(Performance_Actuelle!$F$20,\" - \",\"pondération\")","v":" - pondération"},{"$f":"CONCATENATE(Performance_Actuelle!$F$26,\" - \",\"max de pts\")","v":" - max de pts"},{"$f":"CONCATENATE(Performance_Actuelle!$F$26,\" - \",\"pts obtenus\")","v":" - pts obtenus"},{"$f":"CONCATENATE(Performance_Actuelle!$F$26,\" - \",\"pondération\")","v":" - pondération"},{"$f":"CONCATENATE(Performance_Actuelle!$F$32,\" - \",\"max de pts\")","v":" - max de pts"},{"$f":"CONCATENATE(Performance_Actuelle!$F$32,\" - \",\"pts obtenus\")","v":" - pts obtenus"},{"$f":"CONCATENATE(Performance_Actuelle!$F$32,\" - \",\"pondération\")","v":" - pondération"},"Score par indicateur","Score par indicateur - score obtenu","pondération de l'indicateur",{"$f":"CONCATENATE(Performance_Actuelle!$H$14,\" - \",\"max de pts\")","v":" - max de pts"},{"$f":"CONCATENATE(Performance_Actuelle!$H$14,\" - \",\"pts obtenus\")","v":" - pts obtenus"},{"$f":"CONCATENATE(Performance_Actuelle!$H$14,\" - \",\"pondération\")","v":" - pondération"},{"$f":"CONCATENATE(Performance_Actuelle!$H$20,\" - \",\"max de pts\")","v":" - max de pts"},{"$f":"CONCATENATE(Performance_Actuelle!$H$20,\" - \",\"pts obtenus\")","v":" - pts obtenus"},{"$f":"CONCATENATE(Performance_Actuelle!$H$20,\" - \",\"pondération\")","v":" - pondération"},{"$f":"CONCATENATE(Performance_Actuelle!$H$26,\" - \",\"max de pts\")","v":" - max de pts"},{"$f":"CONCATENATE(Performance_Actuelle!$H$26,\" - \",\"pts obtenus\")","v":" - pts obtenus"},{"$f":"CONCATENATE(Performance_Actuelle!$H$26,\" - \",\"pondération\")","v":" - pondération"},{"$f":"CONCATENATE(Performance_Actuelle!$H$32,\" - \",\"max de pts\")","v":" - max de pts"},{"$f":"CONCATENATE(Performance_Actuelle!$H$32,\" - \",\"pts obtenus\")","v":" - pts obtenus"},{"$f":"CONCATENATE(Performance_Actuelle!$H$32,\" - \",\"pondération\")","v":" - pondération"},"Score par indicateur","Score par indicateur - score obtenu","pondération de l'indicateur",{"$f":"CONCATENATE(Performance_Actuelle!$J$14,\" - \",\"max de ptsl\")","v":" - max de ptsl"},{"$f":"CONCATENATE(Performance_Actuelle!$J$14,\" - \",\"pts obtenus\")","v":" - pts obtenus"},{"$f":"CONCATENATE(Performance_Actuelle!$J$14,\" - \",\"pondération\")","v":" - pondération"},{"$f":"CONCATENATE(Performance_Actuelle!$J$20,\" - \",\"max de pts\")","v":" - max de pts"},{"$f":"CONCATENATE(Performance_Actuelle!$J$20,\" - \",\"pts obtenus\")","v":" - pts obtenus"},{"$f":"CONCATENATE(Performance_Actuelle!$J$20,\" - \",\"pondération\")","v":" - pondération"},{"$f":"CONCATENATE(Performance_Actuelle!$J$26,\" - \",\"max de pts\")","v":" - max de pts"},{"$f":"CONCATENATE(Performance_Actuelle!$J$26,\" - \",\"pts obtenus\")","v":" - pts obtenus"},{"$f":"CONCATENATE(Performance_Actuelle!$J$26,\" - \",\"pondération\")","v":" - pondération"},{"$f":"CONCATENATE(Performance_Actuelle!$J$32,\" - \",\"max de pts\")","v":" - max de pts"},{"$f":"CONCATENATE(Performance_Actuelle!$J$32,\" - \",\"pts obtenus\")","v":" - pts obtenus"},{"$f":"CONCATENATE(Performance_Actuelle!$J$32,\" - \",\"pondération\")","v":" - pondération"},"Score par indicateur","Score par indicateur - score obtenu\n","pondération de l'indicateur"]

{"sheet":"Liste_Résultat","index":3,"n_rows":1,"n_cols":5,"rows_kept":1,"cut":false,"hidden":false,"merged":[]}
["Nom","Prénom","Date de naissance","Date de l'évaluation","Score Final obtenu"]